Cogmind - Beta 17 @@@ ROGUE MODE // 2026.07.21 @ 00:01:09 Player: Ry645 Result: Destroyed by D-53 Grenadier with Mini Grenade Launcher Performance ------------- Evolutions (0) 0 Regions Visited (2) 400 Robots Destroyed (29) 145 Value Destroyed (534) 534 Prototype IDs (0) 0 Alien Tech Used (0) 0 Bonus (0) 0 TOTAL SCORE: 1079 Bonus ------- None Cogmind --------- Core Integrity 0/250 Matter 255/300 Energy 220/250 System Corruption 1% Temperature Cool (0) Movement Walking (120) Location -10/Mines Parts ------- > --- POWER (1) -------- Ion Engine > --- PROPULSION (2) --- Aluminum Leg Aluminum Leg > --- UTILITY (2) ------ Medium Storage Unit Signal Interpreter > --- WEAPON (2) ------- Grenade Launcher > --- INVENTORY (10) --- Ion Engine Aluminum Leg Aluminum Leg High-capacity Storage Unit High-capacity Matter Pod (104) Light Armor Plating Light Armor Plating Light Assault Rifle Peak State ------------ > --- POWER ------------ Ion Engine > --- PROPULSION ------- Aluminum Leg Aluminum Leg > --- UTILITY ---------- Small Storage Unit Medium Storage Unit > --- WEAPON ----------- Assault Rifle Light Cannon > --- INVENTORY -------- Ion Engine Aluminum Leg Aluminum Leg Small Storage Unit High-capacity Matter Pod Signal Interpreter Light Armor Plating Light Armor Plating Light Assault Rifle Grenade Launcher [Rating: 8] Favorites ----------- Power Ion Engine Engine Ion Engine Propulsion Aluminum Leg Leg Aluminum Leg Utility Small Storage Unit Storage Small Storage Unit Processor Signal Interpreter Weapon Light Cannon Energy Gun Medium Laser Ballistic Gun Assault Rifle Ballistic Cannon Light Cannon Launcher Grenade Launcher Build | -11 -10 -10 ------- Run | Yrd Mat Min Slots Evolved . | . . . Power . | . . . Propulsion . | . . . Utility . | . . . Weapon . | . . . Parts Attached 22 | 6 14 2 Power 4 | 1 2 1 Engine 4 | 1 2 1 Core . | . . . Reactor . | . . . Propulsion 7 | 2 5 . Treads . | . . . Leg 7 | 2 5 . Wheel . | . . . Hover . | . . . Flight . | . . . Utility 5 | 1 4 . Device . | . . . Storage 4 | 1 3 . Processor 1 | . 1 . Hackware . | . . . Protection . | . . . Artifact . | . . . Weapon 6 | 2 3 1 Energy Gun 1 | 1 . . Energy Cannon . | . . . Ballistic Gun 2 | 1 1 . Ballistic Cannon 1 | . 1 . Launcher 2 | . 1 1 Special Weapon . | . . . Impact Weapon . | . . . Slashing Weapon . | . . . Piercing Weapon . | . . . Special Melee Weapon . | . . . Unidentified Prototypes . | . . . Parts Lost 4 | . 1 3 Power . | . . . Propulsion . | . . . Utility . | . . . Weapon 4 | . 1 3 Highest Loss Streak 3 | . 1 3 To Critical Strikes . | . . . Average Backups 7 | 2 7 10 Power . | . . 1 Propulsion 1 | . 1 2 Utility 2 | . 2 4 Weapon 2 | 1 2 3 Tool/Special . | . . . Unused Backups 11 | . 5 6 Power 1 | . 1 . Propulsion 4 | . 2 2 Utility 4 | . . 4 Weapon 2 | . 2 . Tool/Special . | . . . Average Slot Usage (%) 94 | . 94 100 Engine 14 | . 14 14 Leg 28 | . 28 28 Storage 20 | . 20 14 Processor 2 | . 1 14 Energy Gun 1 | . 1 . Ballistic Gun 15 | . 15 12 Ballistic Cannon 10 | . 10 12 Peak Build Rating 8 | 6 8 8 Average Rating 6 | 4 6 7 On Entrance 4 | . 6 8 Avg Prop Armor Cover (%) . | . . . Naked Turns . | . . . Heaviest Build 30 | 13 30 20 Greatest Support 20 | 20 20 20 Greatest Overweight (x) 1 | . 1 . Average Overweight (x) . | . . . Largest Inventory Capacity 10 | 8 10 10 Average Capacity 9 | 7 9 10 Most Carried 10 | 5 10 10 Average Carried 7 | 2 7 9 Final Capacity 10 | 8 10 10 Final Carried 10 | 2 10 8 Class Distribution -------------------- 74% | Mutant 25% | Scavenger-Mutant Dominant Class ---------------- Mutant | -10/Materials Mutant | -10/Mines Resources | -11 -10 -10 ----------- Run | Yrd Mat Min Matter Collected 828 | 266 510 52 Remotely . | . . . Salvage Created 791 | 51 740 . Parts 59 | 2 57 . Haulers Intercepted 2 | . 2 . Recyclers Shooed 3 | . 3 . Parts Field Recycled . | . . . Retrieved Matter . | . . . Parts Self-Destructed . | . . . Prevented . | . . . Parts Restored . | . . . Kills | -11 -10 -10 ------- Run | Yrd Mat Min Combat Hostiles Destroyed 18 | . 18 . Guns 9 | . 9 . Cannons 6 | . 6 . AOE 3 | . 3 . Classes Destroyed 7 | 1 6 . Worker 2 | . 2 . Hauler 2 | . 2 . Recycler 3 | 1 2 . Operator 1 | . 1 . Watcher 3 | . 3 . Swarmer 9 | . 9 . Grunt 9 | . 9 . Best Kill Streak 5 | 1 5 . Combat Bots Only 3 | . 3 . Max Kills in Single Turn 2 | 1 2 . Gunslinging . | . . . Exploded 2 | . 2 . Melee . | . . . Uniques/NPCs Destroyed . | . . . Combat | -11 -10 -10 -------- Run | Yrd Mat Min Hostile Shots Fired 103 | . 92 11 Missed 25 | . 24 1 Hits 78 | . 68 10 Projectile 78 | . 68 10 AOE 7 | . . 7 Critical Strikes 1 | . 1 . Damage Taken 1126 | . 762 364 Core 259 | . 195 64 Absorbed by Shields . | . . . Core Remaining (%) 100 | 100 . . Volleys Fired 73 | 7 64 2 Largest 2 | 2 2 2 Hottest 70 | 70 70 60 Shots Fired 148 | 14 130 4 Gun 111 | 14 96 1 Cannon 31 | . 30 1 Launcher 6 | . 4 2 Special . | . . . Kinetic 113 | 7 104 2 Thermal 29 | 7 22 . Explosive 6 | . 4 2 Electromagnetic . | . . . Robot Hit Streak 6 | 6 6 5 Robot Miss Streak 5 | 2 5 . Penetration Max . | . . . Secondary Targets 1 | . 1 . Max Gunslinging Chain 1 | . 1 . Shots Hit Robots 81 | 9 68 4 Core Hits 48 | 2 40 6 Critical Kills . | . . . Critical Parts Destroyed . | . . . Critical Strikes 3 | . 3 . Burn 1 | . 1 . Blast 2 | . 2 . Melee Attacks . | . . . Impact . | . . . Slashing . | . . . Piercing . | . . . Sneak Attacks . | . . . Combat Hostiles . | . . . Follow-up Attacks . | . . . Damage Inflicted 1300 | 99 1149 52 Guns 645 | 99 539 7 Cannons 301 | . 291 10 Explosions 346 | . 311 35 Melee . | . . . Ramming 8 | . 8 . Kinetic 683 | 22 644 17 Thermal 263 | 77 186 . Explosive 346 | . 311 35 Electromagnetic . | . . . Impact . | . . . Slashing . | . . . Piercing . | . . . Highest Corruption 1 | . 1 1 Average Corruption 1 | . 1 1 Corruption Purged . | . . . Corruption Blocked . | . . . Effects 8 | . 7 1 Heat Flow Errors 3 | . 3 . Data Loss (minor) 2 | . 2 . Data Loss (major) 1 | . . 1 Misfires 2 | . 2 . Overload Shots . | . . . Overflow Damage . | . . . Projectiles . | . . . Explosions . | . . . Melee . | . . . Knockbacks 3 | . 3 . Impact . | . . . Kinetic 3 | . 3 . Secondary . | . . . Self-Inflicted Damage 203 | . 135 68 Shots 4 | . 2 2 Rammed . | . . . Targets Rammed 4 | . 3 1 Kicked 4 | . 3 1 Crushed . | . . . Highest Temperature 263 | 110 263 . Average Temperature 57 | 58 57 . Received Heat Transfer 174 | . 174 . Siege Activations . | . . . Martial Activations . | . . . Shielding Activations . | . . . Robots Disrupted . | . . . Combat Hostiles . | . . . Robots Corrupted . | . . . Combat Hostiles . | . . . Parts Fried . | . . . Impact Corruptions . | . . . Robots Melted . | . . . Combat Hostiles . | . . . Parts Melted . | . . . Heat Transferred 851 | 222 629 . Parts Sabotaged . | . . . Parts Stolen . | . . . Parts Stripped . | . . . Power Chain Reactions . | . . . Alert | -11 -10 -10 ------- Run | Yrd Mat Min Maximum Alert Level . | . . . Low Security (%) 100 | 100 100 100 Level 1 . | . . . Level 2 . | . . . Level 3 . | . . . Level 4 . | . . . Level 5 . | . . . High Security . | . . . Max Security . | . . . Peak Influence 152 | 5 152 18 Initial 18 | . 3 18 Average 71 | . 79 4 Influence Increases 647 | 5 642 . Destroy 0b10 Robot/C 360 | . 360 . Destroy 0b10 Robot/NC 55 | 5 50 . Destroy Leader 80 | . 80 . Successful Hack 31 | . 31 . Disable Machine 75 | . 75 . Destroy Structure 46 | . 46 . Influence Decreases 647 | . 598 49 Entered New Map 33 | . 2 31 Time Decay 604 | . 586 18 Lost Part 10 | . 10 . Squads Dispatched 4 | . 4 . Investigation 3 | . 3 . Extermination . | . . . Reinforcement 1 | . 1 . Assault . | . . . Garrison . | . . . Intercept . | . . . Searches Triggered . | . . . Construction Impeded . | . . . Haulers Reinforced . | . . . Active Scanning Responses . | . . . Cargo Convoy Interrupts . | . . . Stealth | -11 -10 -10 --------- Run | Yrd Mat Min Distress Signals 2 | . 2 . Communications Jammed . | . . . Distress Signals . | . . . Times Spotted 42 | . 27 15 Peak Tracking Total 15 | . 4 15 Tactical Retreats 2 | . . 2 Traps | -11 -10 -10 ------- Run | Yrd Mat Min Traps Triggered 2 | . 2 . Indirectly . | . . . Trap Hack Attempts . | . . . Triggered . | . . . Disarmed . | . . . Reprogrammed . | . . . Reused . | . . . Traps Extracted . | . . . Installed . | . . . Triggered . | . . . Machines | -11 -10 -10 ---------- Run | Yrd Mat Min Machines Disabled 5 | . 5 . Max in Single Turn 2 | . 2 . Machines Repaired . | . . . Machines Dismantled . | . . . Machines Sabotaged . | . . . Overloaded Fab Kills . | . . . Hacking | -11 -10 -10 --------- Run | Yrd Mat Min Machines Accessed 10 | . 10 . Terminals 7 | . 7 . Fabricators . | . . . Repair Stations 1 | . 1 . Recycling Units 2 | . 2 . Scanalyzers . | . . . Garrison Access . | . . . Total Hacks 24 | . 24 . Successful 10 | . 10 . Failed 14 | . 14 . Catastrophic 4 | . 4 . Database Lockouts . | . . . Manual . | . . . Terminals 19 | . 19 . Fabricators . | . . . Repair Stations 2 | . 2 . Recycling Units 3 | . 3 . Scanalyzers . | . . . Garrison Access . | . . . Terminal Hacks 7 | . 7 . Locate Traps 2 | . 2 . Maintenance Status 1 | . 1 . Hauler Manifests 1 | . 1 . Zone Layout 3 | . 3 . Fabricator Hacks . | . . . Repair Station Hacks 1 | . 1 . Scan Component 1 | . 1 . Recycling Unit Hacks 2 | . 2 . Retrieve Components 2 | . 2 . Scanalyzer . | . . . Garrison Access Hacks . | . . . Unauthorized Hacks . | . . . Terminals . | . . . Fabricators . | . . . Repair Stations . | . . . Recycling Units . | . . . Scanalyzers . | . . . Garrison Access . | . . . Data Cores Recovered . | . . . Used . | . . . Hacking Detections 9 | . 9 . Full Trace Events 2 | . 2 . Feedback Events . | . . . Feedback Blocked . | . . . Robot Schematics Acquired . | . . . Robots Built . | . . . Authchips . | . . . Time . | . . . Total Robot Build Rating . | . . . Part Schematics Acquired . | . . . Parts Built . | . . . Authchips . | . . . Time . | . . . Total Part Build Rating . | . . . Part Studies Acquired . | . . . Parts Repaired . | . . . Time . | . . . Parts Recycled . | . . . Recycled Matter . | . . . Retrieved Matter . | . . . Retrieved Components 11 | . 11 . Parts Scanalyzed . | . . . Part Schematics Acquired . | . . . Parts Damaged . | . . . Bothacking | -11 -10 -10 ------------ Run | Yrd Mat Min Used RIF Installer . | . . . Robots Hacked . | . . . Non-combat . | . . . Combat . | . . . Robot Hacks Applied . | . . . Relay Couplers Released . | . . . Fabnet Peak Effective % . | . . . Robots Rewired . | . . . Allies Hacked . | . . . Hacks Repelled . | . . . Allies | -11 -10 -10 -------- Run | Yrd Mat Min Total Allies . | . . . Largest Group . | . . . Highest-Rated Group . | . . . Highest-Rated Ally . | . . . Total Orders . | . . . Ally Attacks . | . . . Total Damage . | . . . Kills . | . . . Allies Corrupted . | . . . Allies Melted . | . . . Intel | -11 -10 -10 ------- Run | Yrd Mat Min Active Infowar (turns) . | . . . Robot Analysis Total . | . . . Derelict Logs Recovered 2 | . . 2 Drone Launches . | . . . Drone Recoveries . | . . . Exploration | -11 -10 -10 ------------- Run | Yrd Mat Min Turns Passed 2049 | 98 1849 102 Spaces Moved 1216 | 67 1079 70 Core 21 | 21 . . Treads . | . . . Legs 1195 | 46 1079 70 Wheels . | . . . Hover . | . . . Flight . | . . . Fastest Speed 50 | 50 120 120 Average Speed 141 | 98 145 120 Slowest Speed 190 | 120 190 120 Overloaded Moves . | . . . Propulsion Burnouts . | . . . Robots Hopped . | . . . Potential Cave-ins . | . . . Cave-ins Triggered . | . . . Exploration Rate (%) 37 | 4 95 14 Regions Visited 2 Branch Regions 1 Pre-discovered Areas 1 | . . 1 Known Exits Taken 1 | . 1 . Unknown Exits Taken 1 | 1 . . Scrap Searched . | . . . Spaces Dug . | . . . Terrain Destroyed 50 | . 48 2 Melee . | . . . Projectile . | . . . AOE 50 | . 48 2 Terrain Rammed . | . . . Walls Destroyed . | . . . Machines Disabled . | . . . Actions | -11 -10 -10 --------- Run | Yrd Mat Min Total 1415 | 85 1245 85 Wait 59 | 1 49 9 Move 1214 | 66 1078 70 Hop . | . . . Pick Up 22 | 5 17 . Fast Attach 4 | 3 1 . Attach 8 | 3 3 2 Detach 1 | . 1 . Swap 15 | . 14 1 Drop 15 | . 15 . Fire 73 | 7 64 2 Melee . | . . . Ram . | . . . Kick 4 | . 3 1 Crush . | . . . Escape Stasis . | . . . Rewire . | . . . Trap . | . . . Miscellaneous . | . . . Route ------- -11/Scrapyard -10/Materials (discovered 6 exits: [*Mat x3] / *Min x2 / [*Sub]) -10/Mines History --------- Turn | Location | Event 14 | -11/Scrapyard | Discovered new exit (range 15) 99 | -11/Scrapyard | Entered Materials 245 | -10/Materials | Discovered new exit (range 7) 323 | -10/Materials | Build established: Mutant 445 | -10/Materials | Core integrity fell below 50% 573 | -10/Materials | Discovered new exit (range 13) 678 | -10/Materials | Discovered new exit (range 14) 1110 | -10/Materials | Discovered new exit (range 15) 1237 | -10/Materials | Build established: Scavenger-Mutant 1244 | -10/Materials | Discovered new exit (range 16) 1403 | -10/Materials | Discovered new exit (range 9) 1761 | -10/Materials | Build established: Mutant 1946 | -10/Materials | Identified exit to Mines 1948 | -10/Materials | Entered Mines 1962 | -10/Mines | Learned location of Mines (-8) 2007 | -10/Mines | Assembled infested the area 2012 | -10/Mines | Assisted by a Guerilla fighting off Assembled 2045 | -10/Mines | Core integrity fell below 20% 2050 | -10/Mines | Destroyed by D-53 Grenadier with Mini Grenade Launcher Last Messages --------------- 02033_ HV Slug penetrates Wall. 02039_ HV Slug penetrates as-78442. 02039_ as-78442 suffers critical hit (Destroy). 02040_ C-45 Heavy ARC bursts open, deploying its payload. 02040_ D-53 Grenadier unfolds itself. 02040_ as-48031 destroyed. 02041_ HV Slug penetrates Wall. 02042_ Kicked D-53 Grenadier. 02042_ LL-SF4(h) destroyed. 02042_ as-31845 destroyed. 02042_ as-78442 destroyed. 02043_ Assault Rifle destroyed. 02044_ Lgt. Cannon destroyed. 02045_ The unstable cave ceiling collapses. 02048_ as-20732 destroyed. 02048_ as-00930 destroyed. 02048_ as-80040 destroyed. 02049_ The unstable cave ceiling collapses. 02050_ Grenade Launcher destroyed. Map ----- +----------------------------------------------------+ | | | | | | | | | | | | | ?????????????????????????????????????????????????? | | ?????????????????????????????????????????????????? | | ????????????????????????????????????????###??????? | | ???????????????????????????????????????? ??????? | | ???????????????????? ??????????????????? ??????? | | ??????????????????? ""????????????????? ??????? | | ??????????????????# ""????????????????? ??????? | | ??????????????????# ?????##########??# #??????? | | ?????????????????## ?????# #??# #??????? | | ????????????????## ?????# ###### #??# #??????? | | ?????????????#### ?????# #????# #??# #??????? | | ?????????????? ##???# #????# #??# #??????? | | ??????????????? ##??# #????# ##?# #??????? | | ???????????????? #??# #???## ### #??????? | | ?????????????????? #### #???# #??????? | | ???????????????????# # # ##??# ####??????? | | ??????????????????### #??# ##????????? | | ????????????????### ##?# ! ##???????? | | ????????????????# % #?# #???????? | | ???????????????#; % @d #??# #???????? | | ???????????????# % d #??# #???????? | | ???????????????# % #??## ! #???????? | | ???????????? % ##???## #???????? | | ??????????? $ = a # ##?????# #???????? | | ??????????###### ?##########??????## ##???????? | | ??????????????# ????????????????????###????????? | | ????????????? #???????????????????????????????? | | ????????????? #????????????????????????????????? | | ????????????# #?????????????????????????????????? | | ????????????# ??????????????????????????????????? | | ????????????# ???????????????????????????????????? | | ????????????# ???????????????????????????????????? | | ???????????? ????????????????????????????????????? | | ?????????????????????????????????????????????????? | | ?????????????????????????????????????????????????? | | ?????????????????????????????????????????????????? | | ?????????????????????????????????????????????????? | | ?????????????????????????????????????????????????? | | ?????????????????????????????????????????????????? | | ?????????????????????????????????????????????????? | | ?????????????????????????????????????????????????? | | ?????????????????????????????????????????????????? | | ?????????????????????????????????????????????????? | | ?????????????????????????????????????????????????? | +----------------------------------------------------+ Best States ------------- Heat Dissipation 25 Energy Generation 10 Energy Capacity 250 Matter Stores 300 Matter Capacity 300 Sight Range 16 Terrain Scan Density 10 Evasion (%) 55 Item Schematics ----------------- None Robot Schematics ------------------ None Fabricated ------------ Nothing Repaired ---------- Nothing Studied --------- None Alien Tech Used ----------------- None Achievements -------------- None Challenges ------------ None Game ------ Seed EnhancedPietyShifter Manual? 0 Play Time 00:23:03 Cumulative 9.0 hours Start 2026.07.20 @ 20:49:05 End 2026.07.21 @ 00:01:09 Sessions 5 Manual Loads 0 Difficulty Rogue Special Mode None Game No. 9 Rogue 9 Adventurer 0 Explorer 0 Win Type - Total 0 Types 0/0/0/0/0/0/0/0/0/0 Lore% 4 Gallery% 7 Achievement% 10 Wizard Run 0 Options --------- Layout 2 ASCII 0 Keyboard 0 Movement Mouse Keybinds 1 Fullscreen 1 Font 24/Terminus Map View 50x44 Zoom Use 0% Tactical HUD 1 Map Filters NONE Filters NONE Steam 1 RUN: bd8b110a-7172-451b-9d6e-0f7b301998f8